[Event "*** MasterClass Titled Tuesday Blitz"]
[Site "Chess.com"]
[Date "2017.11.07"]
[Round "2"]
[White "nOcHeaTiNgKiD"]
[Black "FrankieJay"]
[Result "1-0"]
[WhiteElo "2209"]
[BlackElo "2165"]
[TimeControl "180+2"]
[EndTime "14:29:25 PST"]
[Termination "nOcHeaTiNgKiD won by resignation"]

1. d4 {[%clk 0:03:01.9]} 1... Nf6 {[%clk 0:03:00.7]} 2. c4 {[%clk 0:03:01.6]}
2... g6 {[%clk 0:03:01.6]} 3. Nc3 {[%clk 0:03:01.9]} 3... Bg7 {[%clk 0:03:03]}
4. e4 {[%clk 0:03:02.2]} 4... O-O {[%clk 0:03:04.3]} 5. h4 {[%clk 0:03:02.7]}
5... c5 {[%clk 0:02:45.4]} 6. d5 {[%clk 0:03:02.1]} 6... h5 {[%clk 0:02:33.9]}
7. Bg5 {[%clk 0:02:55.6]} 7... d6 {[%clk 0:02:32.5]} 8. f3 {[%clk 0:02:55.8]}
8... Re8 {[%clk 0:02:24.3]} 9. Qd2 {[%clk 0:02:54.5]} 9... Nbd7 {[%clk
0:02:19.5]} 10. Nge2 {[%clk 0:02:44]} 10... Ne5 {[%clk 0:02:18]} 11. Nf4 {[%clk
0:02:42.1]} 11... Nh7 {[%clk 0:02:06.1]} 12. Nh3 {[%clk 0:02:25.3]} 12... Nxg5
{[%clk 0:01:55.1]} 13. Nxg5 {[%clk 0:02:25.4]} 13... Qa5 {[%clk 0:01:50.5]} 14.
Be2 {[%clk 0:02:18.8]} 14... e6 {[%clk 0:01:42.6]} 15. Nb5 {[%clk 0:02:06.8]}
15... Qxd2+ {[%clk 0:01:41.9]} 16. Kxd2 {[%clk 0:02:07.3]} 16... Rd8 {[%clk
0:01:30]} 17. Nc7 {[%clk 0:01:59.6]} 17... Rb8 {[%clk 0:01:29.6]} 18. dxe6
{[%clk 0:02:00.5]} 18... fxe6 {[%clk 0:01:23.6]} 19. Ngxe6 {[%clk 0:01:59.3]}
19... Rd7 {[%clk 0:01:16.6]} 20. Nd5 {[%clk 0:01:58.7]} 20... Bh6+ {[%clk
0:01:10.5]} 21. Ng5 {[%clk 0:01:52.5]} 21... Rf7 {[%clk 0:00:55]} 22. Kc2 {[%clk
0:01:43.3]} 22... Bxg5 {[%clk 0:00:55.1]} 23. hxg5 {[%clk 0:01:43.5]} 23... Be6
{[%clk 0:00:56.6]} 24. Rad1 {[%clk 0:01:35.1]} 24... Bxd5 {[%clk 0:00:44.5]} 25.
Rxd5 {[%clk 0:01:34.8]} 25... Rd7 {[%clk 0:00:41.3]} 26. Rhd1 {[%clk 0:01:33.4]}
26... Rbd8 {[%clk 0:00:42.5]} 27. f4 {[%clk 0:01:29.6]} 27... Nc6 {[%clk
0:00:43.9]} 28. a3 {[%clk 0:01:24.7]} 28... Nd4+ {[%clk 0:00:44]} 29. R1xd4
{[%clk 0:01:25.8]} 29... cxd4 {[%clk 0:00:45.9]} 30. Rxd4 {[%clk 0:01:27.7]}
30... Kf8 {[%clk 0:00:32.5]} 31. f5 {[%clk 0:01:26.3]} 31... Re7 {[%clk
0:00:22.6]} 32. Bd3 {[%clk 0:01:13.2]} 32... Re5 {[%clk 0:00:21.2]} 33. Kc3
{[%clk 0:01:08.1]} 33... Ke7 {[%clk 0:00:21.7]} 34. b4 {[%clk 0:01:02.4]} 34...
Rg8 {[%clk 0:00:23]} 35. c5 {[%clk 0:00:52.9]} 35... dxc5 {[%clk 0:00:23.4]} 36.
f6+ {[%clk 0:00:52.7]} 36... Ke8 {[%clk 0:00:13.7]} 37. Bb5+ {[%clk 0:00:52.2]}
37... Kf7 {[%clk 0:00:11]} 38. Bc4+ {[%clk 0:00:52.8]} 38... Ke8 {[%clk
0:00:10.2]} 39. f7+ {[%clk 0:00:53.6]} 39... Ke7 {[%clk 0:00:09.7]} 40. fxg8=Q
{[%clk 0:00:54.6]} 1-0

[Event "*** MasterClass Titled Tuesday Blitz"]
[Site "Chess.com"]
[Date "2017.11.07"]
[Round "2"]
[White "KamilPlichta"]
[Black "Alexander_Moskalenko"]
[Result "0-1"]
[WhiteElo "2567"]
[BlackElo "2669"]
[TimeControl "180+2"]
[EndTime "14:29:32 PST"]
[Termination "Alexander_Moskalenko won by resignation"]

1. c4 {[%clk 0:03:01.9]} 1... e6 {[%clk 0:02:59.9]} 2. Nc3 {[%clk 0:03:00.1]}
2... Nf6 {[%clk 0:02:59.3]} 3. Nf3 {[%clk 0:02:59.9]} 3... c5 {[%clk 0:02:59.5]}
4. e3 {[%clk 0:02:58.3]} 4... d5 {[%clk 0:02:59.8]} 5. cxd5 {[%clk 0:02:59.3]}
5... exd5 {[%clk 0:02:57.5]} 6. d4 {[%clk 0:02:59.7]} 6... a6 {[%clk 0:02:23.3]}
7. Be2 {[%clk 0:02:58.4]} 7... Nc6 {[%clk 0:02:20.8]} 8. O-O {[%clk 0:02:59.5]}
8... Bd6 {[%clk 0:02:20]} 9. dxc5 {[%clk 0:03:00.9]} 9... Bxc5 {[%clk
0:02:21.9]} 10. b3 {[%clk 0:03:02.4]} 10... O-O {[%clk 0:02:21]} 11. Bb2 {[%clk
0:03:03.7]} 11... Ba7 {[%clk 0:02:21.7]} 12. Rc1 {[%clk 0:03:03.2]} 12... Re8
{[%clk 0:02:20.1]} 13. Na4 {[%clk 0:02:33.6]} 13... Ne4 {[%clk 0:02:19]} 14. Nd4
{[%clk 0:02:35]} 14... Qd6 {[%clk 0:01:57.5]} 15. Nxc6 {[%clk 0:02:30.8]} 15...
bxc6 {[%clk 0:01:59.4]} 16. Bd4 {[%clk 0:02:31.4]} 16... c5 {[%clk 0:01:55.8]}
17. Bb2 {[%clk 0:02:28.8]} 17... Bb8 {[%clk 0:01:46.9]} 18. g3 {[%clk
0:02:29.5]} 18... Bh3 {[%clk 0:01:37.7]} 19. Re1 {[%clk 0:02:30.7]} 19... Ba7
{[%clk 0:01:39.3]} 20. Bf3 {[%clk 0:02:28]} 20... Qe6 {[%clk 0:01:40.2]} 21. Nc3
{[%clk 0:02:20.7]} 21... Rad8 {[%clk 0:01:34.7]} 22. Qc2 {[%clk 0:02:00]} 22...
f5 {[%clk 0:01:26.5]} 23. Ne2 {[%clk 0:01:57.4]} 23... g5 {[%clk 0:01:20.7]} 24.
Nc3 {[%clk 0:01:37.9]} 24... Rf8 {[%clk 0:00:59.2]} 25. Na4 {[%clk 0:01:32]}
25... Rf7 {[%clk 0:00:53.8]} 26. a3 {[%clk 0:01:20]} 26... Rdf8 {[%clk
0:00:51.6]} 27. Ba1 {[%clk 0:01:14.6]} 27... h5 {[%clk 0:00:46.1]} 28. Qb2
{[%clk 0:01:15.6]} 28... Kh7 {[%clk 0:00:40.8]} 29. Bxh5 {[%clk 0:01:16]} 29...
Re7 {[%clk 0:00:33.8]} 30. Bf3 {[%clk 0:01:12.3]} 30... f4 {[%clk 0:00:34.7]}
31. exf4 {[%clk 0:01:12.5]} 31... gxf4 {[%clk 0:00:36.1]} 32. Bxe4+ {[%clk
0:01:09.7]} 32... dxe4 {[%clk 0:00:31.6]} 33. Nxc5 {[%clk 0:01:10.2]} 33... Bxc5
{[%clk 0:00:33.5]} 34. Rxc5 {[%clk 0:01:11.2]} 34... e3 {[%clk 0:00:35.4]} 35.
fxe3 {[%clk 0:00:57.3]} 35... fxe3 {[%clk 0:00:36.3]} 36. Rh5+ {[%clk
0:00:41.8]} 36... Kg6 {[%clk 0:00:36.5]} 37. Re5 {[%clk 0:00:35.3]} 37... Qf7
{[%clk 0:00:27.3]} 38. Qe2 {[%clk 0:00:28.6]} 38... Qf2+ {[%clk 0:00:25.7]} 0-1

[Event "*** MasterClass Titled Tuesday Blitz"]
[Site "Chess.com"]
[Date "2017.11.07"]
[Round "2"]
[White "rpragchess"]
[Black "Abdodi"]
[Result "1-0"]
[WhiteElo "2271"]
[BlackElo "2140"]
[TimeControl "180+2"]
[EndTime "14:29:35 PST"]
[Termination "rpragchess won by resignation"]

1. e4 {[%clk 0:03:01.9]} 1... c6 {[%clk 0:03:00.6]} 2. d4 {[%clk 0:03:00.7]}
2... d5 {[%clk 0:03:01.7]} 3. exd5 {[%clk 0:03:02]} 3... cxd5 {[%clk 0:03:02.7]}
4. Bd3 {[%clk 0:03:03.2]} 4... Nc6 {[%clk 0:03:03.6]} 5. c3 {[%clk 0:03:04.2]}
5... Qc7 {[%clk 0:03:03.1]} 6. h3 {[%clk 0:03:04.6]} 6... Nf6 {[%clk 0:03:03.6]}
7. Ne2 {[%clk 0:03:04.2]} 7... Bd7 {[%clk 0:02:58.5]} 8. O-O {[%clk 0:03:04.1]}
8... e6 {[%clk 0:02:54.4]} 9. Bf4 {[%clk 0:03:02.3]} 9... Bd6 {[%clk 0:02:55.2]}
10. Bxd6 {[%clk 0:03:03.2]} 10... Qxd6 {[%clk 0:02:56.2]} 11. Nd2 {[%clk
0:03:04.5]} 11... O-O {[%clk 0:02:56.5]} 12. Nf3 {[%clk 0:03:05.6]} 12... e5
{[%clk 0:02:54.7]} 13. dxe5 {[%clk 0:03:06.2]} 13... Nxe5 {[%clk 0:02:55.6]} 14.
Nxe5 {[%clk 0:03:02.6]} 14... Qxe5 {[%clk 0:02:56]} 15. Nd4 {[%clk 0:03:02.7]}
15... Rfe8 {[%clk 0:02:52.5]} 16. Re1 {[%clk 0:02:56.7]} 16... Qg5 {[%clk
0:02:51]} 17. Qf3 {[%clk 0:02:47]} 17... Re5 {[%clk 0:02:41.5]} 18. Rxe5 {[%clk
0:02:26.2]} 18... Qxe5 {[%clk 0:02:41.1]} 19. a4 {[%clk 0:02:26.7]} 19... Re8
{[%clk 0:02:39.3]} 20. a5 {[%clk 0:02:27]} 20... a6 {[%clk 0:02:37]} 21. Bc2
{[%clk 0:02:10.5]} 21... Qg5 {[%clk 0:02:22]} 22. Rd1 {[%clk 0:02:03.3]} 22...
Ne4 {[%clk 0:02:01.7]} 23. Ne2 {[%clk 0:01:44.1]} 23... Bb5 {[%clk 0:01:46.4]}
24. Nf4 {[%clk 0:01:41.1]} 24... Nf6 {[%clk 0:01:24.2]} 25. Qg3 {[%clk
0:01:08.5]} 25... Qxg3 {[%clk 0:01:18.9]} 26. fxg3 {[%clk 0:01:09.5]} 26... Ne4
{[%clk 0:01:19.1]} 27. g4 {[%clk 0:01:08.3]} 27... Nf6 {[%clk 0:01:13]} 28. g5
{[%clk 0:00:57.6]} 28... Ne4 {[%clk 0:01:12.3]} 29. Rxd5 {[%clk 0:00:58.2]}
29... Ng3 {[%clk 0:00:50.7]} 30. Rd2 {[%clk 0:00:44.5]} 30... Re1+ {[%clk
0:00:45.6]} 31. Kf2 {[%clk 0:00:44.8]} 31... Ne4+ {[%clk 0:00:36.4]} 32. Kxe1
{[%clk 0:00:44.9]} 32... Nxd2 {[%clk 0:00:35.9]} 33. Kxd2 {[%clk 0:00:45.1]}
33... Kf8 {[%clk 0:00:36]} 34. Ke3 {[%clk 0:00:46]} 34... g6 {[%clk 0:00:34.3]}
35. Kd4 {[%clk 0:00:46.3]} 35... Ke7 {[%clk 0:00:34.6]} 36. Ke5 {[%clk
0:00:47.6]} 36... Bf1 {[%clk 0:00:34]} 37. g3 {[%clk 0:00:48.6]} 37... Bb5
{[%clk 0:00:28.9]} 38. h4 {[%clk 0:00:49.7]} 38... Bd7 {[%clk 0:00:28.8]} 39.
Be4 {[%clk 0:00:50.6]} 39... Bc8 {[%clk 0:00:28]} 40. b4 {[%clk 0:00:51.8]}
40... Ke8 {[%clk 0:00:20.7]} 41. Kd6 {[%clk 0:00:51.3]} 41... Kf8 {[%clk
0:00:20]} 42. Kc7 {[%clk 0:00:51.8]} 1-0

[Event "*** MasterClass Titled Tuesday Blitz"]
[Site "Chess.com"]
[Date "2017.11.07"]
[Round "2"]
[White "Shivagami"]
[Black "nicegg"]
[Result "1-0"]
[WhiteElo "1997"]
[BlackElo "1971"]
[TimeControl "180+2"]
[EndTime "14:29:41 PST"]
[Termination "Shivagami won by resignation"]

1. d4 {[%clk 0:03:01.7]} 1... Nf6 {[%clk 0:03:00]} 2. Bf4 {[%clk 0:02:56.5]}
2... c5 {[%clk 0:03:00.1]} 3. e3 {[%clk 0:02:55.7]} 3... Qb6 {[%clk 0:03:00.5]}
4. Nc3 {[%clk 0:02:54.6]} 4... Qxb2 {[%clk 0:02:55.1]} 5. Nb5 {[%clk 0:02:53.2]}
5... Na6 {[%clk 0:02:54.5]} 6. a3 {[%clk 0:02:49.8]} 6... Nd5 {[%clk 0:02:42.6]}
7. Rb1 {[%clk 0:01:59.2]} 7... Qa2 {[%clk 0:02:40]} 8. Be5 {[%clk 0:01:54.6]}
8... d6 {[%clk 0:02:27.7]} 9. Bg3 {[%clk 0:01:45]} 9... Bd7 {[%clk 0:02:20.4]}
10. Qc1 {[%clk 0:01:32.1]} 10... Nb6 {[%clk 0:01:58.6]} 11. c4 {[%clk
0:01:10.8]} 11... Bxb5 {[%clk 0:01:44.7]} 12. Rxb5 {[%clk 0:01:09.6]} 12... Nc7
{[%clk 0:01:38.3]} 13. Rb1 {[%clk 0:01:09.5]} 13... cxd4 {[%clk 0:01:21.3]} 14.
exd4 {[%clk 0:01:06.2]} 14... Rc8 {[%clk 0:01:20.7]} 15. Nf3 {[%clk 0:01:02.7]}
15... g6 {[%clk 0:01:19.7]} 16. Nd2 {[%clk 0:01:00.6]} 16... Bh6 {[%clk
0:01:01.2]} 17. f4 {[%clk 0:00:59.1]} 17... Na4 {[%clk 0:00:45.3]} 18. Bd3
{[%clk 0:00:48]} 18... e5 {[%clk 0:00:33.1]} 19. Bc2 {[%clk 0:00:43]} 19... exf4
{[%clk 0:00:12.9]} 20. Bxa4+ {[%clk 0:00:41.3]} 20... Kf8 {[%clk 0:00:12.4]} 21.
Bb3 {[%clk 0:00:42.5]} 21... Re8+ {[%clk 0:00:11.6]} 22. Kd1 {[%clk 0:00:40.9]}
22... Qxb1 {[%clk 0:00:09.2]} 23. Qxb1 {[%clk 0:00:39.3]} 23... fxg3 {[%clk
0:00:09.1]} 24. hxg3 {[%clk 0:00:41.2]} 24... Bg7 {[%clk 0:00:09.9]} 25. Nf3
{[%clk 0:00:40.7]} 25... Ne6 {[%clk 0:00:10.5]} 26. Qd3 {[%clk 0:00:40]} 26...
Rc8 {[%clk 0:00:09.4]} 27. Re1 {[%clk 0:00:39.5]} 27... h6 {[%clk 0:00:08.9]}
28. Qe3 {[%clk 0:00:40.2]} 28... Re8 {[%clk 0:00:08.8]} 29. d5 {[%clk
0:00:35.8]} 29... Nc7 {[%clk 0:00:08.3]} 30. Qxa7 {[%clk 0:00:36.6]} 30... Rxe1+
{[%clk 0:00:07.8]} 31. Kxe1 {[%clk 0:00:38]} 31... Bc3+ {[%clk 0:00:08.5]} 32.
Kd1 {[%clk 0:00:37.7]} 32... Kg7 {[%clk 0:00:09.7]} 33. Qxb7 {[%clk 0:00:38]}
33... Ne8 {[%clk 0:00:10.7]} 34. a4 {[%clk 0:00:36.3]} 34... Nf6 {[%clk
0:00:11.1]} 35. Kc2 {[%clk 0:00:36.8]} 35... Be5 {[%clk 0:00:10.2]} 1-0

[Event "*** MasterClass Titled Tuesday Blitz"]
[Site "Chess.com"]
[Date "2017.11.07"]
[Round "2"]
[White "IamSchrodingersCat"]
[Black "AttilaTurzo"]
[Result "0-1"]
[WhiteElo "2422"]
[BlackElo "2362"]
[TimeControl "180+2"]
[EndTime "14:29:45 PST"]
[Termination "AttilaTurzo won on time"]

1. e4 {[%clk 0:03:01.4]} 1... c5 {[%clk 0:03:01.1]} 2. Nf3 {[%clk 0:03:00.9]}
2... g6 {[%clk 0:03:02.7]} 3. d4 {[%clk 0:03:01.7]} 3... cxd4 {[%clk 0:03:04.6]}
4. Nxd4 {[%clk 0:03:03.4]} 4... Nc6 {[%clk 0:03:06.1]} 5. Nc3 {[%clk 0:03:04.6]}
5... Bg7 {[%clk 0:03:07.6]} 6. Be3 {[%clk 0:03:06]} 6... Nf6 {[%clk 0:03:09.2]}
7. Nxc6 {[%clk 0:03:07.3]} 7... bxc6 {[%clk 0:03:09.6]} 8. e5 {[%clk 0:03:08.5]}
8... Ng8 {[%clk 0:03:10.8]} 9. Bd4 {[%clk 0:03:09.8]} 9... f6 {[%clk 0:03:11.1]}
10. Qe2 {[%clk 0:03:09.3]} 10... fxe5 {[%clk 0:03:10.9]} 11. Bxe5 {[%clk
0:03:11.2]} 11... Nf6 {[%clk 0:03:12.4]} 12. O-O-O {[%clk 0:03:11.6]} 12... O-O
{[%clk 0:03:13.3]} 13. Qe1 {[%clk 0:02:52.8]} 13... d6 {[%clk 0:03:10.6]} 14.
Bc4+ {[%clk 0:02:46.7]} 14... Kh8 {[%clk 0:03:11.7]} 15. f3 {[%clk 0:02:30.8]}
15... Qc7 {[%clk 0:02:52.4]} 16. Bg3 {[%clk 0:02:27.9]} 16... e5 {[%clk
0:02:51.9]} 17. h4 {[%clk 0:02:20.4]} 17... Nh5 {[%clk 0:02:42.8]} 18. Bf2
{[%clk 0:02:17]} 18... d5 {[%clk 0:02:43.2]} 19. Bb3 {[%clk 0:02:18.3]} 19...
Nf4 {[%clk 0:02:31.2]} 20. g3 {[%clk 0:02:05.8]} 20... Ne6 {[%clk 0:02:29.5]}
21. h5 {[%clk 0:02:00]} 21... g5 {[%clk 0:02:30.6]} 22. h6 {[%clk 0:02:00.9]}
22... Bf6 {[%clk 0:02:32]} 23. Na4 {[%clk 0:01:10.3]} 23... Nd4 {[%clk
0:02:09.1]} 24. Bxd4 {[%clk 0:01:00.3]} 24... exd4 {[%clk 0:02:11]} 25. Nc5
{[%clk 0:01:01.7]} 25... Qd6 {[%clk 0:02:03.1]} 26. Qa5 {[%clk 0:00:50.6]} 26...
Bd8 {[%clk 0:01:46.8]} 27. Qb4 {[%clk 0:00:50.8]} 27... Be7 {[%clk 0:01:47.1]}
28. Qxd4+ {[%clk 0:00:50.1]} 28... Bf6 {[%clk 0:01:41.9]} 29. Qf2 {[%clk
0:00:31.3]} 29... Bf5 {[%clk 0:01:34.2]} 30. Kb1 {[%clk 0:00:24.7]} 30... Be5
{[%clk 0:01:29.8]} 31. f4 {[%clk 0:00:21]} 31... gxf4 {[%clk 0:01:28.4]} 32.
gxf4 {[%clk 0:00:22.9]} 32... Bxf4 {[%clk 0:01:27.7]} 33. Rdf1 {[%clk
0:00:20.9]} 33... Bxh6 {[%clk 0:01:24.4]} 34. Rhg1 {[%clk 0:00:17.2]} 34... Bg6
{[%clk 0:01:23]} 35. Qd4+ {[%clk 0:00:14.3]} 35... Bg7 {[%clk 0:01:24.2]} 36.
Qe3 {[%clk 0:00:06.8]} 36... d4 {[%clk 0:01:21.5]} 37. Qg5 {[%clk 0:00:07.1]}
37... Qe5 {[%clk 0:01:15.2]} 38. Qxe5 {[%clk 0:00:04.7]} 38... Bxe5 {[%clk
0:01:17.1]} 39. Nd7 {[%clk 0:00:06.2]} 39... Rxf1+ {[%clk 0:01:15.8]} 40. Rxf1
{[%clk 0:00:08.1]} 40... Bg7 {[%clk 0:01:15.8]} 41. a4 {[%clk 0:00:07.1]} 41...
d3 {[%clk 0:01:12.4]} 42. Nc5 {[%clk 0:00:07.8]} 42... d2 {[%clk 0:01:11.6]} 43.
Rd1 {[%clk 0:00:06.9]} 43... Bh6 {[%clk 0:01:11.5]} 44. Nd3 {[%clk 0:00:02.5]}
44... Re8 {[%clk 0:01:10.4]} 45. Nf2 {[%clk 0:00:02.2]} 45... Re1 {[%clk
0:01:09.2]} 0-1

[Event "*** MasterClass Titled Tuesday Blitz"]
[Site "Chess.com"]
[Date "2017.11.07"]
[Round "2"]
[White "OparinGrigoriy"]
[Black "Hanging_pointer"]
[Result "1-0"]
[WhiteElo "2685"]
[BlackElo "2320"]
[TimeControl "180+2"]
[EndTime "14:29:48 PST"]
[Termination "OparinGrigoriy won on time"]

1. e4 {[%clk 0:02:59]} 1... c5 {[%clk 0:03:00.1]} 2. Nf3 {[%clk 0:02:59.2]} 2...
d6 {[%clk 0:03:01.3]} 3. d4 {[%clk 0:03:00.8]} 3... cxd4 {[%clk 0:03:02.5]} 4.
Nxd4 {[%clk 0:03:02.7]} 4... Nf6 {[%clk 0:03:03.2]} 5. Nc3 {[%clk 0:03:04.3]}
5... a6 {[%clk 0:03:04.1]} 6. a3 {[%clk 0:03:04.9]} 6... g6 {[%clk 0:03:03]} 7.
f3 {[%clk 0:03:04.2]} 7... Bg7 {[%clk 0:03:03.7]} 8. Be3 {[%clk 0:03:05.8]} 8...
Nc6 {[%clk 0:03:04.7]} 9. Qd2 {[%clk 0:03:06.9]} 9... O-O {[%clk 0:03:05.2]} 10.
O-O-O {[%clk 0:03:08.5]} 10... d5 {[%clk 0:03:02.3]} 11. Nxc6 {[%clk 0:03:05.6]}
11... bxc6 {[%clk 0:03:02.9]} 12. Kb1 {[%clk 0:03:06.9]} 12... Rb8 {[%clk
0:02:57.5]} 13. h4 {[%clk 0:03:01.6]} 13... h5 {[%clk 0:02:39.6]} 14. Bc5 {[%clk
0:02:53.5]} 14... Qc7 {[%clk 0:02:31.5]} 15. e5 {[%clk 0:02:49.7]} 15... Nh7
{[%clk 0:02:27.3]} 16. f4 {[%clk 0:02:50.3]} 16... Re8 {[%clk 0:02:15.8]} 17.
Bd3 {[%clk 0:02:49.4]} 17... Nf8 {[%clk 0:02:11.6]} 18. Na4 {[%clk 0:02:43.2]}
18... Ne6 {[%clk 0:01:57.4]} 19. Rhf1 {[%clk 0:02:40.1]} 19... Nxc5 {[%clk
0:01:53.4]} 20. Nxc5 {[%clk 0:02:42]} 20... Bg4 {[%clk 0:01:29.7]} 21. Rde1
{[%clk 0:02:41.8]} 21... Qb6 {[%clk 0:01:27]} 22. Qc3 {[%clk 0:02:34.7]} 22...
e6 {[%clk 0:01:10.1]} 23. Nd7 {[%clk 0:02:35.4]} 23... Qb7 {[%clk 0:01:06.3]}
24. Nxb8 {[%clk 0:02:32.2]} 24... Rxb8 {[%clk 0:01:08.1]} 25. Ka2 {[%clk
0:02:29.5]} 25... Bf8 {[%clk 0:01:07.9]} 26. Qb3 {[%clk 0:02:23.7]} 26... Qa7
{[%clk 0:01:00]} 27. Qa4 {[%clk 0:02:24.4]} 27... a5 {[%clk 0:00:55.5]} 28. Qxc6
{[%clk 0:02:19.8]} 28... Qd4 {[%clk 0:00:56.4]} 29. Qc3 {[%clk 0:02:18.6]} 29...
Qa7 {[%clk 0:00:53.8]} 30. f5 {[%clk 0:01:52.4]} 30... Bb4 {[%clk 0:00:47.5]}
31. Qc6 {[%clk 0:01:49]} 31... Bxe1 {[%clk 0:00:28]} 32. fxe6 {[%clk 0:01:42.5]}
32... Bxe6 {[%clk 0:00:22]} 33. Rxe1 {[%clk 0:01:43.3]} 33... Qf2 {[%clk
0:00:18.3]} 34. Rf1 {[%clk 0:01:39.1]} 34... Qxh4 {[%clk 0:00:17.4]} 35. Rf6
{[%clk 0:01:38.1]} 35... Qd4 {[%clk 0:00:17.6]} 36. Qc3 {[%clk 0:01:12.3]} 36...
Qxc3 {[%clk 0:00:15.6]} 37. bxc3 {[%clk 0:01:14.2]} 37... d4+ {[%clk 0:00:13.4]}
38. c4 {[%clk 0:01:15.1]} 38... Rc8 {[%clk 0:00:13]} 39. Kb3 {[%clk 0:01:15.8]}
39... Rb8+ {[%clk 0:00:11.8]} 40. Ka4 {[%clk 0:01:16.8]} 40... Ra8 {[%clk
0:00:08.5]} 41. Kb5 {[%clk 0:01:17.6]} 41... Kg7 {[%clk 0:00:05.5]} 42. c5
{[%clk 0:01:16.8]} 42... Rb8+ {[%clk 0:00:02.2]} 43. Kxa5 {[%clk 0:01:17]} 43...
Rb2 {[%clk 0:00:02.7]} 44. Rxe6 {[%clk 0:01:13.8]} 44... fxe6 {[%clk 0:00:02.9]}
45. c6 {[%clk 0:01:15.4]} 1-0

[Event "*** MasterClass Titled Tuesday Blitz"]
[Site "Chess.com"]
[Date "2017.11.07"]
[Round "2"]
[White "GM_dmitrij"]
[Black "pKiLz5Rn9b"]
[Result "1-0"]
[WhiteElo "2613"]
[BlackElo "2581"]
[TimeControl "180+2"]
[EndTime "14:29:49 PST"]
[Termination "GM_dmitrij won on time"]

1. e4 {[%clk 0:03:01.9]} 1... e6 {[%clk 0:02:59.5]} 2. d4 {[%clk 0:03:02.6]}
2... d5 {[%clk 0:03:00]} 3. exd5 {[%clk 0:03:04.5]} 3... exd5 {[%clk 0:03:00.1]}
4. Nf3 {[%clk 0:03:06]} 4... Nf6 {[%clk 0:02:56.3]} 5. Bd3 {[%clk 0:03:06.9]}
5... c5 {[%clk 0:02:55.5]} 6. O-O {[%clk 0:03:00.4]} 6... c4 {[%clk 0:02:55.6]}
7. Re1+ {[%clk 0:03:00.9]} 7... Be7 {[%clk 0:02:56.9]} 8. Bf1 {[%clk 0:03:02.5]}
8... O-O {[%clk 0:02:56.6]} 9. b3 {[%clk 0:03:04]} 9... cxb3 {[%clk 0:02:56.9]}
10. axb3 {[%clk 0:03:05.9]} 10... Nc6 {[%clk 0:02:57.9]} 11. Bf4 {[%clk
0:02:55.6]} 11... Bf5 {[%clk 0:02:57]} 12. Bd3 {[%clk 0:02:47.4]} 12... Ne4
{[%clk 0:02:34.3]} 13. c3 {[%clk 0:02:23.2]} 13... Rc8 {[%clk 0:02:31.7]} 14. b4
{[%clk 0:02:16.2]} 14... Re8 {[%clk 0:02:22.8]} 15. Nfd2 {[%clk 0:01:52.7]}
15... Nxf2 {[%clk 0:02:12.3]} 16. Kxf2 {[%clk 0:01:54.6]} 16... Bxd3 {[%clk
0:02:13.3]} 17. Qf3 {[%clk 0:01:53.1]} 17... Bg6 {[%clk 0:02:12.3]} 18. Kg1
{[%clk 0:01:42.4]} 18... Qd7 {[%clk 0:02:09.9]} 19. Qf2 {[%clk 0:01:35.6]} 19...
Bf6 {[%clk 0:02:04.2]} 20. Na3 {[%clk 0:01:30.1]} 20... Rxe1+ {[%clk 0:01:35.5]}
21. Rxe1 {[%clk 0:01:32]} 21... Nd8 {[%clk 0:01:31.6]} 22. Nab1 {[%clk
0:01:28.4]} 22... Ne6 {[%clk 0:01:32]} 23. Be5 {[%clk 0:01:20.4]} 23... Bxe5
{[%clk 0:01:31.5]} 24. Rxe5 {[%clk 0:01:18.7]} 24... Qb5 {[%clk 0:01:19.7]} 25.
Re3 {[%clk 0:01:12.8]} 25... h6 {[%clk 0:01:18.1]} 26. Qe1 {[%clk 0:01:11.1]}
26... Kh7 {[%clk 0:01:10.4]} 27. Nf3 {[%clk 0:01:06.8]} 27... a5 {[%clk
0:01:04.2]} 28. Ne5 {[%clk 0:00:59.2]} 28... Bxb1 {[%clk 0:00:19]} 29. Qxb1+
{[%clk 0:00:58.4]} 29... Kg8 {[%clk 0:00:20.9]} 30. Nxf7 {[%clk 0:00:52.2]}
30... Qd7 {[%clk 0:00:10.3]} 31. Ne5 {[%clk 0:00:45.5]} 31... Qc7 {[%clk
0:00:10.5]} 32. Qf5 {[%clk 0:00:34.6]} 32... Re8 {[%clk 0:00:11.4]} 33. bxa5
{[%clk 0:00:34.5]} 33... Qxa5 {[%clk 0:00:11.8]} 34. Qf7+ {[%clk 0:00:33.7]}
34... Kh7 {[%clk 0:00:13.2]} 35. Qg6+ {[%clk 0:00:34.7]} 1-0